[Event "*** Titled Tuesday Blitz"]
[Site "Chess.com"]
[Date "2018.11.06"]
[Round "3"]
[White "Vamostodorecto"]
[Black "mitrabhaa"]
[Result "1-0"]
[WhiteElo "2446"]
[BlackElo "2608"]
[TimeControl "180+2"]
[EndTime "13:39:07 PST"]
[Termination "Vamostodorecto won by resignation"]

1. d4 {[%clk 0:03:01.7]} 1... e6 {[%clk 0:03:01]} 2. c4 {[%clk 0:03:01.5]} 2...
Nf6 {[%clk 0:03:02.3]} 3. Nc3 {[%clk 0:03:01.4]} 3... Bb4 {[%clk 0:03:02.9]} 4.
a3 {[%clk 0:03:01.7]} 4... Bxc3+ {[%clk 0:03:03.4]} 5. bxc3 {[%clk 0:03:03.3]}
5... O-O {[%clk 0:03:05]} 6. f3 {[%clk 0:03:04.5]} 6... d6 {[%clk 0:03:05.9]} 7.
e4 {[%clk 0:03:04.9]} 7... e5 {[%clk 0:03:07.4]} 8. Bd3 {[%clk 0:03:05.2]} 8...
Nbd7 {[%clk 0:03:08.6]} 9. Ne2 {[%clk 0:03:05.9]} 9... Re8 {[%clk 0:03:10.1]}
10. O-O {[%clk 0:03:06]} 10... c5 {[%clk 0:03:09.2]} 11. Bg5 {[%clk 0:02:53.6]}
11... Nf8 {[%clk 0:03:08.1]} 12. f4 {[%clk 0:02:50.1]} 12... h6 {[%clk
0:03:07.2]} 13. fxe5 {[%clk 0:02:47.9]} 13... hxg5 {[%clk 0:03:07.2]} 14. exf6
{[%clk 0:02:48.3]} 14... gxf6 {[%clk 0:03:08.4]} 15. Ng3 {[%clk 0:02:44.8]}
15... Ng6 {[%clk 0:03:02.2]} 16. Nh5 {[%clk 0:02:42.9]} 16... Re6 {[%clk
0:02:54.4]} 17. d5 {[%clk 0:02:30.5]} 17... Re5 {[%clk 0:02:53.9]} 18. Nxf6+
{[%clk 0:02:29.9]} 18... Kg7 {[%clk 0:02:52.3]} 19. Qf3 {[%clk 0:02:00.8]} 19...
Nf4 {[%clk 0:02:34.5]} 20. Nh5+ {[%clk 0:01:55.2]} 20... Nxh5 {[%clk 0:02:35.2]}
21. Qxh5 {[%clk 0:01:57.1]} 21... Qe7 {[%clk 0:02:33.5]} 22. Qf3 {[%clk
0:01:03.8]} 22... Bd7 {[%clk 0:02:33.9]} 23. Ra2 {[%clk 0:01:03.6]} 23... Rh8
{[%clk 0:02:34.6]} 24. Raf2 {[%clk 0:01:03.7]} 24... Be8 {[%clk 0:02:35.9]} 25.
Qf6+ {[%clk 0:01:02.9]} 25... Kg8 {[%clk 0:02:23.3]} 26. Rf5 {[%clk 0:01:00.6]}
26... Qxf6 {[%clk 0:02:16.8]} 27. Rxf6 {[%clk 0:01:02.5]} 27... Kf8 {[%clk
0:02:15.2]} 28. Rxd6 {[%clk 0:01:01.6]} 28... Ke7 {[%clk 0:02:16.5]} 29. Rdf6
{[%clk 0:01:02.3]} 29... Rh4 {[%clk 0:02:17.7]} 30. R6f5 {[%clk 0:01:00.1]}
30... Rxf5 {[%clk 0:02:14.9]} 31. Rxf5 {[%clk 0:01:02]} 31... Rg4 {[%clk
0:02:08.8]} 32. g3 {[%clk 0:00:59.3]} 32... Bd7 {[%clk 0:02:09.2]} 33. Rf3
{[%clk 0:00:34.6]} 33... f5 {[%clk 0:02:06.6]} 34. h3 {[%clk 0:00:25.7]} 34...
Rxe4 {[%clk 0:02:03.9]} 35. Bxe4 {[%clk 0:00:24.9]} 35... fxe4 {[%clk
0:02:05.4]} 36. Re3 {[%clk 0:00:26.3]} 36... Bf5 {[%clk 0:02:07]} 37. g4 {[%clk
0:00:26.1]} 37... Bg6 {[%clk 0:02:08.1]} 38. Kf2 {[%clk 0:00:26.3]} 38... Kd6
{[%clk 0:02:09.5]} 39. Kg3 {[%clk 0:00:25.6]} 39... b5 {[%clk 0:02:10.3]} 40.
cxb5 {[%clk 0:00:24.8]} 40... Kxd5 {[%clk 0:02:11.8]} 41. h4 {[%clk 0:00:25.2]}
41... Kc4 {[%clk 0:02:13]} 42. h5 {[%clk 0:00:23]} 42... Bh7 {[%clk 0:02:13.4]}
43. Kf2 {[%clk 0:00:22]} 43... Kxb5 {[%clk 0:02:14.3]} 44. Ke2 {[%clk
0:00:20.5]} 44... Ka4 {[%clk 0:02:13.5]} 45. Kd2 {[%clk 0:00:19.1]} 45... Kxa3
{[%clk 0:02:13.8]} 46. Re1 {[%clk 0:00:20.2]} 46... Kb2 {[%clk 0:02:14]} 47. Rf1
{[%clk 0:00:21.1]} 47... a5 {[%clk 0:02:14.8]} 48. Rf7 {[%clk 0:00:22.1]} 48...
Bg8 {[%clk 0:02:15.3]} 49. Rb7+ {[%clk 0:00:23.4]} 49... Bb3 {[%clk 0:02:16.2]}
50. h6 {[%clk 0:00:23.4]} 50... a4 {[%clk 0:02:17.8]} 51. h7 {[%clk 0:00:23.9]}
51... a3 {[%clk 0:02:19.3]} 52. h8=Q {[%clk 0:00:24.7]} 52... a2 {[%clk
0:02:20.9]} 53. c4+ {[%clk 0:00:25.8]} 53... Ka3 {[%clk 0:02:20.6]} 54. Qa1
{[%clk 0:00:23.8]} 54... Bxc4 {[%clk 0:02:20.6]} 55. Qc3+ {[%clk 0:00:22.7]}
55... Ka4 {[%clk 0:02:22]} 56. Qxc4+ {[%clk 0:00:23.7]} 1-0

[Event "*** Titled Tuesday Blitz"]
[Site "Chess.com"]
[Date "2018.11.06"]
[Round "3"]
[White "vugarrasulov"]
[Black "kleinebeer98"]
[Result "1-0"]
[WhiteElo "2776"]
[BlackElo "2616"]
[TimeControl "180+2"]
[EndTime "13:39:17 PST"]
[Termination "vugarrasulov won by resignation"]

1. e4 {[%clk 0:03:01.9]} 1... e5 {[%clk 0:02:57.1]} 2. Nf3 {[%clk 0:03:02.3]}
2... Nc6 {[%clk 0:02:58.6]} 3. Bb5 {[%clk 0:03:03.4]} 3... f5 {[%clk 0:02:59.6]}
4. Nc3 {[%clk 0:03:01.9]} 4... fxe4 {[%clk 0:03:00.1]} 5. Nxe4 {[%clk
0:03:03.8]} 5... d5 {[%clk 0:03:01.5]} 6. Nxe5 {[%clk 0:03:04.6]} 6... dxe4
{[%clk 0:03:02.9]} 7. Nxc6 {[%clk 0:03:03.9]} 7... Qd5 {[%clk 0:03:04.3]} 8. c4
{[%clk 0:02:58]} 8... Qd6 {[%clk 0:03:04.5]} 9. Nxa7+ {[%clk 0:02:46.4]} 9... c6
{[%clk 0:03:05.1]} 10. Nxc8 {[%clk 0:02:47]} 10... Rxc8 {[%clk 0:03:06.3]} 11.
Qg4 {[%clk 0:02:36.4]} 11... Rd8 {[%clk 0:02:42.8]} 12. Qxe4+ {[%clk 0:02:36.5]}
12... Kd7 {[%clk 0:02:42]} 13. c5 {[%clk 0:02:26.1]} 13... Qxc5 {[%clk
0:02:39.2]} 14. Be2 {[%clk 0:02:26.8]} 14... Nf6 {[%clk 0:02:36.6]} 15. Qf3
{[%clk 0:02:27.9]} 15... Bd6 {[%clk 0:02:28.6]} 16. O-O {[%clk 0:02:29]} 16...
Rhf8 {[%clk 0:02:24.1]} 17. d4 {[%clk 0:02:29.8]} 17... Qd5 {[%clk 0:02:17.3]}
18. Rd1 {[%clk 0:02:21.2]} 18... Kc7 {[%clk 0:01:58.7]} 19. Be3 {[%clk
0:02:14.2]} 19... Ne4 {[%clk 0:01:49.5]} 20. Qh3 {[%clk 0:02:09.7]} 20... Bf4
{[%clk 0:01:40]} 21. Bf3 {[%clk 0:02:06.2]} 21... Ng5 {[%clk 0:01:37.8]} 22.
Bxf4+ {[%clk 0:01:43.5]} 22... Rxf4 {[%clk 0:01:39.7]} 23. Qg3 {[%clk
0:01:44.3]} 23... Nxf3+ {[%clk 0:01:36.3]} 24. gxf3 {[%clk 0:01:43.5]} 24...
Qxf3 {[%clk 0:01:37.3]} 25. d5 {[%clk 0:01:13.6]} 25... Qxg3+ {[%clk 0:01:13]}
26. hxg3 {[%clk 0:01:15.5]} 26... Rb4 {[%clk 0:01:14.9]} 27. dxc6 {[%clk
0:01:13.9]} 27... Rxb2 {[%clk 0:00:54.7]} 28. Rxd8 {[%clk 0:01:11]} 28... Kxd8
{[%clk 0:00:56.6]} 29. cxb7 {[%clk 0:01:11.9]} 29... Kc7 {[%clk 0:00:57.9]} 30.
a4 {[%clk 0:01:06.4]} 30... Kxb7 {[%clk 0:00:58.2]} 31. Re1 {[%clk 0:01:07.4]}
31... Kc6 {[%clk 0:00:49]} 32. Re7 {[%clk 0:01:08]} 32... g5 {[%clk 0:00:44.2]}
33. Rxh7 {[%clk 0:01:07.8]} 33... Rb4 {[%clk 0:00:42.7]} 34. Rh5 {[%clk
0:01:05.1]} 34... g4 {[%clk 0:00:42.3]} 35. a5 {[%clk 0:01:05.6]} 35... Ra4
{[%clk 0:00:43.3]} 36. Rf5 {[%clk 0:01:06.6]} 36... Kd6 {[%clk 0:00:41.7]} 37.
Rf4 {[%clk 0:01:07.6]} 37... Rxa5 {[%clk 0:00:40]} 38. Rxg4 {[%clk 0:01:08.4]}
38... Ke6 {[%clk 0:00:41.9]} 39. Kg2 {[%clk 0:01:09.5]} 39... Kf5 {[%clk
0:00:42.8]} 40. Rf4+ {[%clk 0:01:06.9]} 40... Kg5 {[%clk 0:00:44.7]} 41. Rf8
{[%clk 0:01:08]} 41... Ra2 {[%clk 0:00:44.1]} 42. Kh3 {[%clk 0:01:08.9]} 42...
Ra1 {[%clk 0:00:41.8]} 43. f4+ {[%clk 0:01:09.8]} 43... Kh5 {[%clk 0:00:42.6]}
44. Rf5+ {[%clk 0:01:10.4]} 44... Kh6 {[%clk 0:00:43.1]} 45. Kg4 {[%clk
0:01:12.3]} 45... Ra3 {[%clk 0:00:43.3]} 46. Rf6+ {[%clk 0:01:10.3]} 46... Kg7
{[%clk 0:00:44.6]} 47. Re6 {[%clk 0:01:11.5]} 47... Rb3 {[%clk 0:00:43.8]} 48.
f5 {[%clk 0:01:12.8]} 48... Ra3 {[%clk 0:00:43.6]} 49. Kf4 {[%clk 0:01:14.1]}
49... Kf7 {[%clk 0:00:39.1]} 50. g4 {[%clk 0:01:15.3]} 50... Ra1 {[%clk
0:00:39.6]} 51. Kg5 {[%clk 0:01:16.2]} 51... Rh1 {[%clk 0:00:40.1]} 52. Rh6
{[%clk 0:01:16.4]} 52... Rg1 {[%clk 0:00:39.5]} 53. Rh7+ {[%clk 0:01:17.6]}
53... Kg8 {[%clk 0:00:40.1]} 54. Rb7 {[%clk 0:01:18.4]} 54... Kf8 {[%clk
0:00:39.5]} 55. Kf6 {[%clk 0:01:18.9]} 55... Kg8 {[%clk 0:00:40.8]} 56. g5
{[%clk 0:01:19.3]} 1-0

[Event "*** Titled Tuesday Blitz"]
[Site "Chess.com"]
[Date "2018.11.06"]
[Round "3"]
[White "Lagmantr"]
[Black "MishkaFighter"]
[Result "1-0"]
[WhiteElo "2527"]
[BlackElo "2298"]
[TimeControl "180+2"]
[EndTime "13:39:18 PST"]
[Termination "Lagmantr won by checkmate"]

1. e4 {[%clk 0:03:01.9]} 1... d6 {[%clk 0:03:00.7]} 2. d4 {[%clk 0:03:02.2]}
2... Nf6 {[%clk 0:03:01.9]} 3. Nc3 {[%clk 0:03:02.6]} 3... g6 {[%clk 0:03:03.2]}
4. Nf3 {[%clk 0:02:57.6]} 4... Bg7 {[%clk 0:03:03.7]} 5. Be3 {[%clk 0:02:58.8]}
5... O-O {[%clk 0:02:52.6]} 6. Bd3 {[%clk 0:02:59.1]} 6... Nc6 {[%clk
0:02:50.3]} 7. d5 {[%clk 0:02:54.5]} 7... Nb4 {[%clk 0:02:42.8]} 8. Be2 {[%clk
0:02:52.3]} 8... c6 {[%clk 0:02:39.5]} 9. a3 {[%clk 0:02:46.3]} 9... Na6 {[%clk
0:02:40.6]} 10. Bxa6 {[%clk 0:02:36.2]} 10... bxa6 {[%clk 0:02:41.4]} 11. dxc6
{[%clk 0:02:38.1]} 11... Rb8 {[%clk 0:01:57.4]} 12. Bxa7 {[%clk 0:02:33.1]}
12... Rxb2 {[%clk 0:01:55.7]} 13. Bd4 {[%clk 0:02:34.1]} 13... e5 {[%clk
0:01:26.8]} 14. Na4 {[%clk 0:01:43.7]} 14... Qa5+ {[%clk 0:00:42.1]} 15. Bc3
{[%clk 0:01:41.7]} 15... Qxa4 {[%clk 0:00:41.3]} 16. Bxb2 {[%clk 0:01:41]} 16...
Qxe4+ {[%clk 0:00:42.8]} 17. Qe2 {[%clk 0:01:42.4]} 17... Qxc6 {[%clk
0:00:44.7]} 18. O-O {[%clk 0:01:41.9]} 18... Bg4 {[%clk 0:00:45.3]} 19. h3
{[%clk 0:01:41.8]} 19... Bxf3 {[%clk 0:00:46.5]} 20. Qxf3 {[%clk 0:01:43.3]}
20... Qxc2 {[%clk 0:00:47.6]} 21. Rab1 {[%clk 0:01:43.3]} 21... h5 {[%clk
0:00:20.4]} 22. Rfc1 {[%clk 0:01:42.5]} 22... Qa4 {[%clk 0:00:20.8]} 23. Qc6
{[%clk 0:01:41.1]} 23... Qf4 {[%clk 0:00:19.4]} 24. Qxa6 {[%clk 0:01:29.4]}
24... Ne4 {[%clk 0:00:18.4]} 25. Qe2 {[%clk 0:01:26.5]} 25... Kh7 {[%clk
0:00:14.3]} 26. Re1 {[%clk 0:01:13.9]} 26... Nc5 {[%clk 0:00:09.6]} 27. Rbd1
{[%clk 0:01:06.8]} 27... Rb8 {[%clk 0:00:08.3]} 28. Rxd6 {[%clk 0:01:04.5]}
28... Na4 {[%clk 0:00:03]} 29. Bxe5 {[%clk 0:01:03.5]} 29... Bxe5 {[%clk
0:00:02.8]} 30. Qxe5 {[%clk 0:01:05.4]} 30... Qc4 {[%clk 0:00:03]} 31. Qd5
{[%clk 0:01:00.7]} 31... Qc3 {[%clk 0:00:03.7]} 32. Qxf7+ {[%clk 0:00:56.1]}
32... Qg7 {[%clk 0:00:02]} 33. Qxg7+ {[%clk 0:00:56.6]} 33... Kxg7 {[%clk
0:00:03.9]} 34. Re7+ {[%clk 0:00:57.9]} 34... Kh6 {[%clk 0:00:05]} 35. Ree6
{[%clk 0:00:59]} 35... Rb1+ {[%clk 0:00:06.3]} 36. Kh2 {[%clk 0:00:59.4]} 36...
Nc3 {[%clk 0:00:08.2]} 37. Rxg6+ {[%clk 0:01:00.1]} 37... Kh7 {[%clk 0:00:10.1]}
38. Rh6+ {[%clk 0:01:00.5]} 38... Kg7 {[%clk 0:00:10.8]} 39. Rdg6+ {[%clk
0:00:58.8]} 39... Kf7 {[%clk 0:00:11.5]} 40. Rc6 {[%clk 0:01:00.1]} 40... Ne4
{[%clk 0:00:12.6]} 41. Rh7+ {[%clk 0:01:01]} 41... Kg8 {[%clk 0:00:13.4]} 42.
Re7 {[%clk 0:01:01]} 42... Nxf2 {[%clk 0:00:10]} 43. Rc8# {[%clk 0:01:01.5]} 1-0

[Event "*** Titled Tuesday Blitz"]
[Site "Chess.com"]
[Date "2018.11.06"]
[Round "3"]
[White "Alex_Terzi"]
[Black "Rakhmanov_Aleksandr"]
[Result "0-1"]
[WhiteElo "2468"]
[BlackElo "2866"]
[TimeControl "180+2"]
[EndTime "13:39:18 PST"]
[Termination "Rakhmanov_Aleksandr won by resignation"]

1. e4 {[%clk 0:03:01.9]} 1... c5 {[%clk 0:03:00.4]} 2. Nf3 {[%clk 0:03:01.8]}
2... Nf6 {[%clk 0:03:01.7]} 3. Nc3 {[%clk 0:03:02.1]} 3... d5 {[%clk 0:03:02.1]}
4. exd5 {[%clk 0:02:58.7]} 4... Nxd5 {[%clk 0:03:04]} 5. Bc4 {[%clk 0:02:57.6]}
5... Nb6 {[%clk 0:03:04.1]} 6. Bb5+ {[%clk 0:02:57]} 6... Bd7 {[%clk 0:03:04.7]}
7. O-O {[%clk 0:02:51.9]} 7... Bxb5 {[%clk 0:03:03.6]} 8. Nxb5 {[%clk
0:02:53.8]} 8... Nc6 {[%clk 0:03:04.6]} 9. d3 {[%clk 0:02:51.5]} 9... e6 {[%clk
0:03:03.6]} 10. Bf4 {[%clk 0:02:51.4]} 10... Nd5 {[%clk 0:03:03.3]} 11. Bg3
{[%clk 0:02:52.4]} 11... a6 {[%clk 0:03:03.2]} 12. Nc3 {[%clk 0:02:52.8]} 12...
Be7 {[%clk 0:03:03]} 13. Re1 {[%clk 0:02:48.6]} 13... O-O {[%clk 0:03:03.2]} 14.
Ne5 {[%clk 0:02:49.5]} 14... Nd4 {[%clk 0:03:01.7]} 15. Nxd5 {[%clk 0:02:44.8]}
15... Qxd5 {[%clk 0:03:01]} 16. Qd2 {[%clk 0:02:33.9]} 16... Nf5 {[%clk
0:02:55.4]} 17. Qf4 {[%clk 0:02:29.1]} 17... Rad8 {[%clk 0:02:49]} 18. Qe4
{[%clk 0:02:28.5]} 18... Bf6 {[%clk 0:02:47.1]} 19. Qxd5 {[%clk 0:02:19.2]}
19... Rxd5 {[%clk 0:02:46.4]} 20. f4 {[%clk 0:02:10.5]} 20... Bxe5 {[%clk
0:02:38.9]} 21. fxe5 {[%clk 0:01:57.7]} 21... Rc8 {[%clk 0:02:32.2]} 22. Re4
{[%clk 0:01:56.8]} 22... g5 {[%clk 0:02:18.8]} 23. Bf2 {[%clk 0:01:50.5]} 23...
h5 {[%clk 0:02:19.4]} 24. h3 {[%clk 0:01:46.5]} 24... Kg7 {[%clk 0:02:15]} 25.
g4 {[%clk 0:01:45.8]} 25... hxg4 {[%clk 0:02:12]} 26. hxg4 {[%clk 0:01:47.7]}
26... Nd4 {[%clk 0:02:09.4]} 27. Bxd4 {[%clk 0:01:24.5]} 27... cxd4 {[%clk
0:02:05]} 28. Rc1 {[%clk 0:01:20.5]} 28... b5 {[%clk 0:02:05.4]} 29. Kf1 {[%clk
0:01:03.7]} 29... Kg6 {[%clk 0:02:00.2]} 30. Ke2 {[%clk 0:01:01.7]} 30... Rh8
{[%clk 0:02:00.2]} 31. Rf1 {[%clk 0:01:01.4]} 31... Rc5 {[%clk 0:01:49.8]} 32.
Rxd4 {[%clk 0:00:22.5]} 32... Rxc2+ {[%clk 0:01:47]} 33. Ke3 {[%clk 0:00:21.7]}
33... Rh3+ {[%clk 0:01:44.9]} 34. Rf3 {[%clk 0:00:21.6]} 34... Rxf3+ {[%clk
0:01:32.6]} 35. Kxf3 {[%clk 0:00:23.5]} 35... Rxb2 {[%clk 0:01:33.9]} 36. a4
{[%clk 0:00:25]} 36... a5 {[%clk 0:01:30]} 37. axb5 {[%clk 0:00:25.6]} 37...
Rxb5 {[%clk 0:01:31.8]} 38. Ke4 {[%clk 0:00:27.1]} 38... f6 {[%clk 0:01:08.5]}
39. exf6 {[%clk 0:00:26.1]} 39... Kxf6 {[%clk 0:01:10.4]} 40. Rc4 {[%clk
0:00:24.3]} 40... Rb4 {[%clk 0:01:05.3]} 41. Rxb4 {[%clk 0:00:17.9]} 41... axb4
{[%clk 0:01:05.7]} 42. d4 {[%clk 0:00:19.6]} 42... b3 {[%clk 0:00:48.5]} 43. Kd3
{[%clk 0:00:20.5]} 43... e5 {[%clk 0:00:49.8]} 44. d5 {[%clk 0:00:17.4]} 44...
e4+ {[%clk 0:00:48.7]} 45. Kc3 {[%clk 0:00:18.7]} 45... e3 {[%clk 0:00:49.8]}
46. Kxb3 {[%clk 0:00:20.6]} 46... e2 {[%clk 0:00:51]} 0-1

[Event "*** Titled Tuesday Blitz"]
[Site "Chess.com"]
[Date "2018.11.06"]
[Round "3"]
[White "Perecke"]
[Black "xpto15"]
[Result "0-1"]
[WhiteElo "1983"]
[BlackElo "1303"]
[TimeControl "180+2"]
[EndTime "13:39:20 PST"]
[Termination "xpto15 won by resignation"]

1. e4 {[%clk 0:03:01.9]} 1... e5 {[%clk 0:02:58.9]} 2. Nf3 {[%clk 0:03:01.7]}
2... Nc6 {[%clk 0:03:00.1]} 3. d4 {[%clk 0:03:02.5]} 3... exd4 {[%clk 0:03:02]}
4. Bc4 {[%clk 0:03:03.6]} 4... Nf6 {[%clk 0:03:03.2]} 5. e5 {[%clk 0:03:03.9]}
5... d5 {[%clk 0:03:04.4]} 6. Bb5 {[%clk 0:03:04.9]} 6... Ne4 {[%clk 0:03:04.7]}
7. Nxd4 {[%clk 0:03:06.6]} 7... Bd7 {[%clk 0:03:06.2]} 8. Bxc6 {[%clk
0:03:05.2]} 8... bxc6 {[%clk 0:03:08.1]} 9. O-O {[%clk 0:03:06.2]} 9... Bc5
{[%clk 0:03:09.8]} 10. f3 {[%clk 0:03:06.8]} 10... Ng5 {[%clk 0:03:10.5]} 11.
Be3 {[%clk 0:03:08.3]} 11... O-O {[%clk 0:03:00.1]} 12. f4 {[%clk 0:02:58.2]}
12... Ne4 {[%clk 0:02:37.2]} 13. c3 {[%clk 0:02:58.1]} 13... Bb6 {[%clk
0:02:37.2]} 14. Nd2 {[%clk 0:02:50.2]} 14... f5 {[%clk 0:02:36]} 15. Nxe4 {[%clk
0:02:50.1]} 15... fxe4 {[%clk 0:02:37.9]} 16. Qd2 {[%clk 0:02:49.1]} 16... a5
{[%clk 0:02:27.6]} 17. Kh1 {[%clk 0:02:38]} 17... a4 {[%clk 0:02:26.3]} 18. Ne2
{[%clk 0:02:19.6]} 18... Qe7 {[%clk 0:02:17.4]} 19. Bxb6 {[%clk 0:02:01.1]}
19... cxb6 {[%clk 0:02:19.3]} 20. Ng3 {[%clk 0:01:59.7]} 20... g6 {[%clk
0:02:15.2]} 21. Rad1 {[%clk 0:01:47.8]} 21... Kh8 {[%clk 0:02:04.6]} 22. c4
{[%clk 0:01:44.3]} 22... Be6 {[%clk 0:01:49]} 23. cxd5 {[%clk 0:01:43.6]} 23...
cxd5 {[%clk 0:01:50.9]} 24. Qd4 {[%clk 0:01:42.5]} 24... b5 {[%clk 0:01:51.3]}
25. Ne2 {[%clk 0:01:38.3]} 25... b4 {[%clk 0:01:43.4]} 26. Qe3 {[%clk
0:01:09.1]} 26... a3 {[%clk 0:01:27.7]} 27. b3 {[%clk 0:01:07.5]} 27... Rac8
{[%clk 0:01:26.4]} 28. Nd4 {[%clk 0:01:01.2]} 28... Rc3 {[%clk 0:01:26.5]} 29.
Qd2 {[%clk 0:00:58.8]} 29... Rfc8 {[%clk 0:01:26.6]} 30. Nxe6 {[%clk 0:00:59.4]}
30... Qxe6 {[%clk 0:01:28.5]} 31. Qxd5 {[%clk 0:01:00.4]} 31... Qxd5 {[%clk
0:01:28.4]} 32. Rxd5 {[%clk 0:01:02.3]} 32... Rc2 {[%clk 0:01:28.9]} 33. e6
{[%clk 0:01:01.7]} 33... Re8 {[%clk 0:01:23.4]} 34. Re5 {[%clk 0:01:00.3]} 34...
Rxa2 {[%clk 0:01:07.4]} 35. Rxe4 {[%clk 0:00:57.1]} 35... Rb2 {[%clk 0:01:08.7]}
36. Rxb4 {[%clk 0:00:54.1]} 36... a2 {[%clk 0:01:09.2]} 37. Ra4 {[%clk 0:00:37]}
37... Rxe6 {[%clk 0:01:09.3]} 38. Rd1 {[%clk 0:00:36.7]} 38... Rb1 {[%clk
0:01:04.8]} 39. Rg1 {[%clk 0:00:25.9]} 39... Ree1 {[%clk 0:00:57.8]} 40. Ra8+
{[%clk 0:00:23.5]} 40... Kg7 {[%clk 0:00:57.3]} 41. Ra7+ {[%clk 0:00:25.4]}
41... Kg8 {[%clk 0:00:55]} 42. Ra8+ {[%clk 0:00:24.5]} 42... Kf7 {[%clk
0:00:54.8]} 43. Ra7+ {[%clk 0:00:25.8]} 43... Kf8 {[%clk 0:00:55.8]} 44. Ra8+
{[%clk 0:00:27]} 44... Ke7 {[%clk 0:00:56.8]} 45. Ra7+ {[%clk 0:00:28.3]} 45...
Ke8 {[%clk 0:00:56]} 46. Ra8+ {[%clk 0:00:28.6]} 46... Kd7 {[%clk 0:00:54.8]}
0-1

[Event "*** Titled Tuesday Blitz"]
[Site "Chess.com"]
[Date "2018.11.06"]
[Round "3"]
[White "mc4chess"]
[Black "Fy_Rakotomaharo"]
[Result "1-0"]
[WhiteElo "2502"]
[BlackElo "2373"]
[TimeControl "180+2"]
[EndTime "13:39:24 PST"]
[Termination "mc4chess won by resignation"]

1. Nf3 {[%clk 0:03:01.9]} 1... Nf6 {[%clk 0:02:59]} 2. c4 {[%clk 0:03:01.6]}
2... g6 {[%clk 0:02:54.2]} 3. g3 {[%clk 0:03:02.2]} 3... c6 {[%clk 0:02:53.2]}
4. Bg2 {[%clk 0:02:56.1]} 4... d5 {[%clk 0:02:54.4]} 5. cxd5 {[%clk 0:02:56.5]}
5... cxd5 {[%clk 0:02:54.6]} 6. O-O {[%clk 0:02:57.6]} 6... Bg7 {[%clk
0:02:55.3]} 7. d4 {[%clk 0:02:54.4]} 7... O-O {[%clk 0:02:56.1]} 8. Nc3 {[%clk
0:02:56]} 8... Ne4 {[%clk 0:02:56.7]} 9. Qb3 {[%clk 0:02:49.2]} 9... Nc6 {[%clk
0:02:31.1]} 10. Rd1 {[%clk 0:02:19.1]} 10... Na5 {[%clk 0:02:18.6]} 11. Qb4
{[%clk 0:02:10.8]} 11... Bf5 {[%clk 0:02:00.9]} 12. Bf4 {[%clk 0:02:03.4]} 12...
Nxc3 {[%clk 0:01:51.1]} 13. bxc3 {[%clk 0:02:05.3]} 13... Rc8 {[%clk 0:01:36.6]}
14. Ne5 {[%clk 0:01:53.3]} 14... b6 {[%clk 0:01:16.4]} 15. Rac1 {[%clk
0:01:34.2]} 15... Nc4 {[%clk 0:01:06.1]} 16. Nxc4 {[%clk 0:01:32.4]} 16... Rxc4
{[%clk 0:01:05]} 17. Qb5 {[%clk 0:01:27.4]} 17... e6 {[%clk 0:00:55.9]} 18. f3
{[%clk 0:01:27.4]} 18... g5 {[%clk 0:00:56.3]} 19. Bd2 {[%clk 0:01:23.7]} 19...
Bg6 {[%clk 0:00:52.4]} 20. e4 {[%clk 0:01:19.8]} 20... Rc8 {[%clk 0:00:42.3]}
21. e5 {[%clk 0:01:13.9]} 21... h6 {[%clk 0:00:30.8]} 22. f4 {[%clk 0:01:09.8]}
22... Qe7 {[%clk 0:00:22.1]} 23. Qe2 {[%clk 0:00:51.6]} 23... Rc7 {[%clk
0:00:13.2]} 24. Rf1 {[%clk 0:00:48.8]} 24... Rfc8 {[%clk 0:00:10.1]} 25. fxg5
{[%clk 0:00:47.3]} 25... hxg5 {[%clk 0:00:11.1]} 26. Qg4 {[%clk 0:00:48.9]}
26... Bf5 {[%clk 0:00:09.9]} 27. Rxf5 {[%clk 0:00:49.5]} 27... exf5 {[%clk
0:00:10.5]} 28. Qxf5 {[%clk 0:00:51.4]} 28... Qe6 {[%clk 0:00:11.7]} 29. Qxg5
{[%clk 0:00:52.2]} 29... b5 {[%clk 0:00:08.9]} 30. h4 {[%clk 0:00:50.3]} 30...
b4 {[%clk 0:00:09.4]} 31. cxb4 {[%clk 0:00:50.7]} 31... Rxc1+ {[%clk 0:00:10]}
32. Bxc1 {[%clk 0:00:52.6]} 32... Qb6 {[%clk 0:00:09.9]} 33. Be3 {[%clk
0:00:41]} 33... Qxb4 {[%clk 0:00:09.2]} 34. Bxd5 {[%clk 0:00:41.9]} 34... Qe1+
{[%clk 0:00:09.4]} 35. Kg2 {[%clk 0:00:37.2]} 35... Rc2+ {[%clk 0:00:10]} 36.
Kh3 {[%clk 0:00:38.8]} 36... Qf1+ {[%clk 0:00:07.1]} 37. Kg4 {[%clk 0:00:39.9]}
37... Qe2+ {[%clk 0:00:08.1]} 38. Bf3 {[%clk 0:00:41]} 38... Qd3 {[%clk
0:00:07.2]} 39. Kf4 {[%clk 0:00:35.1]} 39... Rc3 {[%clk 0:00:07.6]} 40. Qd8+
{[%clk 0:00:35.3]} 40... Kh7 {[%clk 0:00:08.1]} 41. Be4+ {[%clk 0:00:36.3]} 1-0

[Event "*** Titled Tuesday Blitz"]
[Site "Chess.com"]
[Date "2018.11.06"]
[Round "3"]
[White "Polish_fighter3000"]
[Black "Grieve72"]
[Result "1-0"]
[WhiteElo "2979"]
[BlackElo "2294"]
[TimeControl "180+2"]
[EndTime "13:39:30 PST"]
[Termination "Polish_fighter3000 won by resignation"]

1. e4 {[%clk 0:03:01.9]} 1... d6 {[%clk 0:03:00.9]} 2. d4 {[%clk 0:02:59.1]}
2... Nf6 {[%clk 0:03:02.2]} 3. Bd3 {[%clk 0:03:00.7]} 3... e5 {[%clk 0:03:02.4]}
4. c3 {[%clk 0:03:01]} 4... c6 {[%clk 0:03:01.8]} 5. Nf3 {[%clk 0:03:01.8]} 5...
Qc7 {[%clk 0:02:59.8]} 6. h3 {[%clk 0:03:01.8]} 6... Be7 {[%clk 0:03:00.2]} 7.
O-O {[%clk 0:03:00.6]} 7... Nbd7 {[%clk 0:02:59.2]} 8. Re1 {[%clk 0:03:01.5]}
8... h6 {[%clk 0:02:59.6]} 9. Nbd2 {[%clk 0:03:02.4]} 9... Nf8 {[%clk
0:02:59.8]} 10. Nf1 {[%clk 0:03:03.5]} 10... Ng6 {[%clk 0:02:58.7]} 11. Ng3
{[%clk 0:03:04.4]} 11... O-O {[%clk 0:02:58.3]} 12. Be3 {[%clk 0:03:05.8]} 12...
Re8 {[%clk 0:02:54.3]} 13. a4 {[%clk 0:02:59.4]} 13... Bf8 {[%clk 0:02:51.2]}
14. a5 {[%clk 0:03:00]} 14... Nf4 {[%clk 0:02:43.3]} 15. Bxf4 {[%clk 0:02:56.3]}
15... exf4 {[%clk 0:02:45.2]} 16. Nf1 {[%clk 0:02:57.7]} 16... g6 {[%clk
0:02:17.2]} 17. Qd2 {[%clk 0:02:57.2]} 17... Nh5 {[%clk 0:02:18]} 18. N1h2
{[%clk 0:02:22]} 18... Bg7 {[%clk 0:02:11.1]} 19. b4 {[%clk 0:02:20.6]} 19...
Bd7 {[%clk 0:02:03.8]} 20. Ng4 {[%clk 0:02:20.4]} 20... Re7 {[%clk 0:01:56]} 21.
e5 {[%clk 0:02:12.4]} 21... Rae8 {[%clk 0:01:45.7]} 22. Re2 {[%clk 0:01:59.1]}
22... b6 {[%clk 0:01:05.7]} 23. axb6 {[%clk 0:01:53.6]} 23... axb6 {[%clk
0:01:07.6]} 24. Rae1 {[%clk 0:01:51.7]} 24... c5 {[%clk 0:00:56.5]} 25. Nh4
{[%clk 0:00:52.7]} 25... dxe5 {[%clk 0:00:41.8]} 26. dxe5 {[%clk 0:00:50.3]}
26... Bxe5 {[%clk 0:00:20]} 27. Bxg6 {[%clk 0:00:37.7]} 27... f3 {[%clk
0:00:13.9]} 28. Nxh6+ {[%clk 0:00:33]} 28... Kf8 {[%clk 0:00:09.7]} 29. Rxe5
{[%clk 0:00:24.2]} 29... Rxe5 {[%clk 0:00:08.1]} 30. Rxe5 {[%clk 0:00:22.9]}
30... Rxe5 {[%clk 0:00:06.1]} 31. Nxf7 {[%clk 0:00:23.4]} 31... Re6 {[%clk
0:00:03.1]} 32. Bxh5 {[%clk 0:00:21.2]} 32... Bc6 {[%clk 0:00:03.1]} 33. Nxf3
{[%clk 0:00:15.8]} 33... Bxf3 {[%clk 0:00:04]} 34. Ng5 {[%clk 0:00:14.9]} 34...
Rf6 {[%clk 0:00:03.6]} 35. Bxf3 {[%clk 0:00:15.5]} 35... cxb4 {[%clk 0:00:04.7]}
36. cxb4 {[%clk 0:00:17.4]} 36... Qf4 {[%clk 0:00:04.1]} 37. Ne6+ {[%clk
0:00:17.8]} 1-0